fUST/lending_fUST_20240920
["ID","MTS","AMOUNT","RATE_DAILY","PERIOD"]
[338624348,1726807846867,-500.0,0.00016438,2]
[338624349,1726807846877,-500.0,0.00016438,2]
[338624350,1726807846887,-500.0,0.00016438,2]
[338624351,1726807846896,-500.0,0.00016438,2]
[338624352,1726807846906,-500.0,0.00016438,2]
[338624353,1726807846915,-1137.345721,0.00016438,2]
[338624354,1726807846925,-1137.345721,0.00016438,2]
[338624355,1726807846934,-500.0,0.00016438,2]
[338624356,1726807846945,-500.0,0.00016438,2]
[338624357,1726807846955,-500.0,0.00016438,2]
[338624358,1726807846965,-500.0,0.00016438,2]
[338624359,1726807846976,-500.0,0.00016438,2]
[338624360,1726807846988,-1137.345721,0.00016438,2]
[338624361,1726807846999,-1137.345721,0.00016438,2]
[338624362,1726807847009,-513.92715003,0.00016438,2]
[338624363,1726807847019,-500.0,0.00016438,2]
[338624364,1726807847028,-500.0,0.00016438,2]
[338624365,1726807847040,-1099.49,0.00016438,2]
[338624366,1726807847050,-500.0,0.00016438,2]
[338624367,1726807847060,-500.0,0.00016438,2]
[338624368,1726807847070,-500.0,0.00016438,2]
[338624369,1726807847080,-500.0,0.00016438,2]
[338624370,1726807847090,-500.0,0.00016438,2]
[338624372,1726807847099,-526.02,0.00016438,2]
[338624373,1726807847109,-501.68759347,0.00016438,2]
[338624374,1726807847119,-500.0,0.00016438,2]
[338624375,1726807847129,-500.0,0.00016438,2]
[338624376,1726807847139,-500.0,0.00016438,2]
[338624377,1726807847149,-500.0,0.00016438,2]
[338624378,1726807847159,-500.0,0.00016438,2]
[338624379,1726807847168,-557.77,0.00016438,2]
[338624380,1726807847178,-500.0,0.00016438,2]
[338624381,1726807847187,-500.0,0.00016438,2]
[338624382,1726807847197,-500.0,0.00016438,2]
[338624383,1726807847209,-67371.52,0.00016438,2]
[338624384,1726807847220,-500.0,0.00016438,2]
[338624385,1726807847231,-500.0,0.00016438,2]
[338624386,1726807847243,-500.0,0.00016438,2]
[338624387,1726807847253,-500.0,0.00016438,2]
[338624388,1726807847263,-500.0,0.00016438,2]
[338624389,1726807847273,-151.0,0.00016438,2]
[338624390,1726807847283,-151.0,0.00016438,2]
[338624391,1726807847293,-152.688568,0.00016438,2]
[338624392,1726807847302,-153.0,0.000165,2]
[338624393,1726807847311,-153.0,0.000165,2]
[338624394,1726807847321,-153.0,0.000165,2]
[338624395,1726807847331,-307.1833129,0.000165,2]
[338624396,1726807847341,-153.0,0.000165,2]
[338624397,1726807847350,-420.0,0.00016508,2]
[338624398,1726807847360,-150.112252,0.000166,2]
[338624399,1726807847370,-308.8108868,0.000166,2]
[338624400,1726807847379,-415.0948282,0.000166,2]
[338624401,1726807847389,-417.5847252,0.000166,2]
[338624402,1726807847398,-153.0,0.000166,2]
[338624403,1726807847411,-151.0,0.00016662,2]
[338624404,1726807847420,-151.0,0.00016662,2]
[338624405,1726807847430,-151.0,0.00016662,2]
[338624406,1726807847440,-151.0,0.00016662,2]
[338624407,1726807847449,-632.550972,0.00016662,2]
[338624408,1726807847458,-632.550972,0.00016662,2]
[338624409,1726807847468,-151.0,0.00016681,2]
[338624410,1726807847478,-1864.674522,0.00016681,2]
[338624411,1726807847488,-1864.674522,0.00016681,2]
[338624412,1726807847498,-1083.548299,0.00016681,2]
[338624413,1726807847507,-1083.548299,0.00016681,2]
[338624414,1726807847517,-345.981531,0.00016681,2]
[338624415,1726807847527,-345.981531,0.00016681,2]
[338624416,1726807847538,-151.0,0.00016681,2]
[338624417,1726807847548,-151.0,0.00016681,2]
[338624418,1726807847557,-151.0,0.00016682,2]
[338624419,1726807847567,-151.0,0.00016682,2]
[338624420,1726807847576,-151.0,0.0001669,2]
[338624421,1726807847586,-151.0,0.00016691,2]
[338624422,1726807847596,-6382.22720875,0.00016692,2]
[338624423,1726807847606,-151.0,0.00016692,2]
[338624424,1726807847616,-312.386417,0.00016692,2]
[338624425,1726807847626,-312.386417,0.00016692,2]
[338624426,1726807847635,-151.0,0.00016692,2]
[338624427,1726807847645,-151.0,0.00016692,2]
[338624428,1726807847654,-151.0,0.00016692,2]
[338624429,1726807847664,-222.200814,0.00016692,2]
[338624430,1726807847673,-222.200814,0.00016692,2]
[338624431,1726807847682,-151.0,0.00016692,2]
[338624432,1726807847692,-150.112236,0.000167,2]
[338624433,1726807847701,-150.112233,0.000167,2]
[338624434,1726807847711,-150.112233,0.000167,2]
[338624435,1726807847720,-150.112233,0.000167,2]
[338624436,1726807847732,-306.0,0.000167,2]
[338624437,1726807847741,-153.0,0.000167,2]
[338624438,1726807847751,-354.5028304,0.000167,2]
[338624439,1726807847761,-195.543437,0.00016702,2]
[338624440,1726807847770,-151.0,0.00016702,2]
[338624441,1726807847780,-312.386417,0.00016702,2]
[338624442,1726807847797,-312.386417,0.00016702,2]
[338624443,1726807847806,-247.859748,0.00016702,2]
[338624444,1726807847816,-247.859748,0.00016702,2]
[338624445,1726807847825,-151.0,0.00016702,2]
[338624446,1726807847835,-151.0,0.00016702,2]
[338624447,1726807847844,-151.0,0.00016702,2]
[338624448,1726807847854,-151.0,0.00016702,2]
[338624449,1726807847863,-1864.674522,0.00016702,2]
[338624450,1726807847873,-1864.674522,0.00016702,2]
[338624451,1726807847883,-1083.548299,0.00016702,2]
[338624452,1726807847892,-1083.548299,0.00016702,2]
[338624453,1726807847902,-151.0,0.00016702,2]
[338624454,1726807847912,-152.110787,0.00016702,2]
[338624455,1726807847922,-151.0,0.00016702,2]
[338624456,1726807847932,-151.0,0.00016702,2]
[338624457,1726807847942,-151.0,0.00016702,2]
[338624458,1726807847951,-632.550972,0.00016702,2]
[338624459,1726807847961,-632.550972,0.00016702,2]
[338624460,1726807847971,-345.981531,0.00016702,2]
[338624461,1726807847981,-345.981531,0.00016702,2]
[338624462,1726807847990,-151.0,0.00016702,2]
[338624463,1726807848000,-1217.660307,0.00016702,2]
[338624464,1726807848009,-1217.660307,0.00016702,2]
[338624465,1726807848019,-151.0,0.00016702,2]
[338624466,1726807848029,-151.0,0.00016702,2]
[338624467,1726807848044,-151.0,0.00016702,2]
[338624468,1726807848053,-171.412635,0.00016702,2]
[338624469,1726807848064,-171.412635,0.00016702,2]
[338624470,1726807848075,-1137.345721,0.00016702,2]
[338624471,1726807848085,-1137.345721,0.00016702,2]
[338624472,1726807848095,-12764.4544175,0.00016702,2]
[338624473,1726807848105,-247.859748,0.00016711,2]
[338624474,1726807848115,-247.859748,0.00016711,2]
[338624475,1726807848125,-151.0,0.00016711,2]
[338624476,1726807848134,-151.0,0.00016711,2]
[338624477,1726807848144,-151.0,0.00016711,2]
[338624478,1726807848153,-151.0,0.00016711,2]
[338624479,1726807848163,-1864.674522,0.00016711,2]
[338624480,1726807848173,-1864.674522,0.00016711,2]
[338624481,1726807848182,-160.38649539,0.00016711,2]
[338624482,1726807848192,-1083.548299,0.00016711,2]
[338624483,1726807848202,-1083.548299,0.00016711,2]
[338624484,1726807848212,-151.0,0.00016711,2]
[338624485,1726807848221,-345.981531,0.00016711,2]
[338624486,1726807848230,-345.981531,0.00016711,2]
[338624487,1726807848240,-151.0,0.00016711,2]
[338624488,1726807848250,-151.0,0.00016711,2]
[338624489,1726807848260,-151.0,0.00016712,2]
[338624490,1726807848269,-151.0,0.00016712,2]
[338624491,1726807848279,-312.386417,0.00016712,2]
[338624492,1726807848291,-312.386417,0.00016712,2]
[338624493,1726807848300,-312.386417,0.00016712,2]
[338624494,1726807848309,-312.386417,0.00016712,2]
[338624495,1726807848319,-1000.0,0.00016712,2]
[338624496,1726807848329,-1000.0,0.00016712,2]
[338624497,1726807848339,-1000.0,0.00016712,2]
[338624498,1726807848349,-1000.0,0.00016712,2]
[338624499,1726807848359,-1000.0,0.00016712,2]
[338624500,1726807848369,-1000.0,0.00016712,2]
[338624501,1726807848379,-1000.0,0.00016712,2]
[338624502,1726807848388,-1000.0,0.00016712,2]
[338624503,1726807848398,-1000.0,0.00016712,2]
[338624504,1726807848410,-1000.0,0.00016712,2]
[338624505,1726807848420,-1000.0,0.00016712,2]
[338624506,1726807848430,-1000.0,0.00016712,2]
[338624507,1726807848439,-1000.0,0.00016712,2]
[338624508,1726807848448,-1000.0,0.00016712,2]
[338624509,1726807848459,-1000.0,0.00016712,2]
[338624510,1726807848468,-1000.0,0.00016712,2]
[338624511,1726807848478,-1000.0,0.00016712,2]
[338624512,1726807848488,-1000.0,0.00016712,2]
[338624513,1726807848498,-1000.0,0.00016712,2]
[338624514,1726807848508,-1000.0,0.00016712,2]
[338624515,1726807848517,-474.685088,0.00016712,2]
[338624516,1726807848527,-151.0,0.00016712,2]
[338624517,1726807848537,-500.0,0.00016712,2]
[338624518,1726807848547,-1154.323209,0.00016712,2]
[338624519,1726807848556,-1154.323209,0.00016712,2]
[338624520,1726807848567,-1154.323209,0.00016712,2]
[338624521,1726807848576,-1154.323209,0.00016712,2]
[338624522,1726807848585,-151.0,0.00016712,2]
[338624523,1726807848594,-151.0,0.00016712,2]
[338624524,1726807848604,-151.952744,0.00016712,2]
[338624525,1726807848613,-151.0,0.00016712,2]
[338624526,1726807848622,-151.0,0.00016712,2]
[338624527,1726807848631,-151.0,0.00016712,2]
[338624528,1726807848640,-151.0,0.00016712,2]
[338624529,1726807848649,-151.0,0.00016712,2]
[338624530,1726807848697,-151.0,0.00016712,2]
[338624531,1726807848706,-500.0,0.00016712,2]
[338624532,1726807848715,-550.32285136,0.00016712,2]
[338624533,1726807848724,-222.200814,0.00016712,2]
[338624534,1726807848733,-222.200814,0.00016712,2]
[338624535,1726807848742,-222.200814,0.00016712,2]
[338624536,1726807848752,-222.200814,0.00016712,2]
[338624537,1726807848761,-222.200814,0.00016712,2]
[338624538,1726807848770,-222.200814,0.00016712,2]
[338624539,1726807848779,-500.0,0.00016712,2]
[338624540,1726807848790,-500.0,0.00016712,2]
[338624541,1726807848805,-500.0,0.00016712,2]
[338624542,1726807848815,-247.859748,0.00016712,2]
[338624543,1726807848824,-247.859748,0.00016712,2]
[338624544,1726807848832,-247.859748,0.00016712,2]
[338624545,1726807848842,-247.859748,0.00016712,2]
[338624546,1726807848851,-247.859748,0.00016712,2]
[338624547,1726807848861,-247.859748,0.00016712,2]
[338624548,1726807848870,-500.0,0.00016712,2]
[338624549,1726807848879,-151.0,0.00016712,2]
[338624550,1726807848888,-151.0,0.00016712,2]
[338624551,1726807848897,-151.0,0.00016712,2]
[338624552,1726807848907,-151.0,0.00016712,2]
[338624553,1726807848916,-151.0,0.00016712,2]
[338624554,1726807848925,-151.0,0.00016712,2]
[338624555,1726807848934,-911.2,0.00016712,2]
[338624556,1726807848944,-151.0,0.00016712,2]
[338624557,1726807848953,-151.0,0.00016712,2]
[338624558,1726807848963,-508.75,0.00016712,2]
[338624559,1726807848973,-500.0,0.00016712,2]
[338624560,1726807848983,-620.1,0.00016712,2]
[338624561,1726807848993,-336.45697618,0.00016712,2]
[338624562,1726807849001,-500.0,0.00016712,2]
[338624563,1726807849010,-500.0,0.00016712,2]
[338624564,1726807849019,-500.0,0.00016712,2]
[338624565,1726807849028,-500.0,0.00016712,2]
[338624566,1726807849044,-500.0,0.00016712,2]
[338624567,1726807849054,-500.0,0.00016712,2]
[338624568,1726807849063,-500.0,0.00016712,2]
[338624569,1726807849072,-500.0,0.00016712,2]
[338624570,1726807849081,-500.0,0.00016712,2]
[338624571,1726807849090,-500.0,0.00016712,2]
[338624572,1726807849099,-500.0,0.00016712,2]
[338624573,1726807849108,-151.0,0.00016712,2]
[338624574,1726807849118,-151.0,0.00016712,2]
[338624575,1726807849127,-151.0,0.00016712,2]
[338624576,1726807849136,-500.0,0.00016712,2]
[338624577,1726807849145,-500.0,0.00016712,2]
[338624578,1726807849154,-159.46416124,0.00016712,2]
[338624579,1726807849163,-607.84,0.00016712,2]
[338624580,1726807849173,-500.0,0.00016712,2]
[338624581,1726807849183,-500.0,0.00016712,2]
[338624582,1726807849192,-500.0,0.00016712,2]
[338624583,1726807849202,-1864.674522,0.00016712,2]
[338624584,1726807849211,-1864.674522,0.00016712,2]
[338624585,1726807849220,-1864.674522,0.00016712,2]
[338624586,1726807849230,-500.37443154,0.00016712,2]
[338624587,1726807849239,-1864.674522,0.00016712,2]
[338624588,1726807849250,-1864.674522,0.00016712,2]
[338624589,1726807849259,-1864.674522,0.00016712,2]
[338624590,1726807849268,-383.6720789,0.00016712,2]
[338624591,1726807849278,-230.03,0.00016712,2]
[338624592,1726807849288,-159.43,0.00016712,2]
[338624593,1726807849297,-500.0,0.00016712,2]
[338624594,1726807849307,-500.0,0.00016712,2]
[338624595,1726807849316,-500.0,0.00016712,2]
[338624596,1726807849325,-500.0,0.00016712,2]
[338624597,1726807849334,-500.0,0.00016712,2]
[338624598,1726807849343,-1749.0,0.00016712,2]
[338624599,1726807849352,-500.0,0.00016712,2]
[338624600,1726807849362,-566.11765676,0.00016712,2]
[338624601,1726807849371,-500.0,0.00016712,2]
[338624602,1726807849381,-500.0,0.00016712,2]
[338624603,1726807849390,-574.4,0.00016712,2]
[338624604,1726807849400,-294.731558,0.00016712,2]
[338624605,1726807849412,-500.0,0.00016712,2]
[338624606,1726807849421,-617.32,0.00016712,2]
[338624607,1726807849431,-344.95,0.00016712,2]
[338624608,1726807849440,-500.0,0.00016712,2]
[338624609,1726807849450,-501.43925429,0.00016712,2]
[338624610,1726807849460,-1083.548299,0.00016712,2]
[338624611,1726807849469,-1083.548299,0.00016712,2]
[338624612,1726807849478,-1083.548299,0.00016712,2]
[338624613,1726807849487,-500.0,0.00016712,2]
[338624614,1726807849497,-1083.548299,0.00016712,2]
[338624615,1726807849506,-1083.548299,0.00016712,2]
[338624616,1726807849515,-500.0,0.00016712,2]
[338624617,1726807849524,-1083.548299,0.00016712,2]
[338624618,1726807849534,-500.0,0.00016712,2]
[338624619,1726807849545,-500.0,0.00016712,2]
[338624620,1726807849554,-500.0,0.00016712,2]
[338624621,1726807849563,-500.0,0.00016712,2]
[338624622,1726807849573,-500.0,0.00016712,2]
[338624623,1726807849582,-1129.77,0.00016712,2]
[338624624,1726807849592,-500.0,0.00016712,2]
[338624625,1726807849601,-500.0,0.00016712,2]
[338624626,1726807849611,-151.0,0.00016712,2]
[338624627,1726807849620,-151.0,0.00016712,2]
[338624628,1726807849630,-209.052271,0.00016712,2]
[338624629,1726807849639,-500.73074249,0.00016712,2]
[338624630,1726807849649,-500.0,0.00016712,2]
[338624631,1726807849659,-287.287461,0.00016712,2]
[338624632,1726807849669,-769.29,0.00016712,2]
[338624633,1726807849680,-500.0,0.00016712,2]
[338624634,1726807849690,-500.0,0.00016712,2]
[338624635,1726807849700,-151.32479679,0.00016712,2]
[338624636,1726807849711,-500.92332934,0.00016712,2]
[338624637,1726807849721,-975.55,0.00016712,2]
[338624638,1726807849731,-500.0,0.00016712,2]
[338624639,1726807849741,-500.0,0.00016712,2]
[338624640,1726807849750,-500.0,0.00016712,2]
[338624641,1726807849761,-500.0,0.00016712,2]
[338624642,1726807849770,-232.73,0.00016712,2]
[338624643,1726807849784,-2379.22,0.00016712,2]
[338624644,1726807849801,-500.0,0.00016712,2]
[338624645,1726807849811,-522.01,0.00016712,2]
[338624646,1726807849821,-501.17228205,0.00016712,2]
[338624647,1726807849831,-154.221509,0.00016712,2]
[338624648,1726807849847,-500.0,0.00016712,2]
[338624649,1726807849858,-500.0,0.00016712,2]
[338624650,1726807849868,-500.0,0.00016712,2]
[338624651,1726807849878,-500.0,0.00016712,2]
[338624652,1726807849889,-500.0,0.00016712,2]
[338624653,1726807849899,-500.0,0.00016712,2]
[338624654,1726807849909,-976.87,0.00016712,2]
[338624655,1726807849919,-500.0,0.00016712,2]
[338624656,1726807849930,-500.0,0.00016712,2]
[338624657,1726807849941,-868.22,0.00016712,2]
[338624658,1726807849952,-151.0,0.00016712,2]
[338624659,1726807849962,-152.736545,0.00016712,2]
[338624660,1726807849973,-500.0,0.00016712,2]
[338624661,1726807849983,-500.0,0.00016712,2]
[338624662,1726807849997,-500.0,0.00016712,2]
[338624663,1726807850007,-500.63728807,0.00016712,2]
[338624664,1726807850018,-500.0,0.00016712,2]
[338624665,1726807850028,-500.0,0.00016712,2]
[338624666,1726807850039,-500.0,0.00016712,2]
[338624667,1726807850049,-500.0,0.00016712,2]
[338624668,1726807850060,-981.04,0.00016712,2]
[338624669,1726807850070,-500.85091195,0.00016712,2]
[338624670,1726807850080,-500.0,0.00016712,2]
[338624671,1726807850091,-547.3,0.00016712,2]
[338624672,1726807850101,-698.07,0.00016712,2]
[338624673,1726807850111,-2941.08,0.00016712,2]
[338624674,1726807850121,-1225.68,0.00016712,2]
[338624675,1726807850131,-719.49,0.00016712,2]
[338624676,1726807850140,-500.0,0.00016712,2]
[338624677,1726807850150,-653.43,0.00016712,2]
[338624678,1726807850160,-500.0,0.00016712,2]
[338624679,1726807850169,-500.0,0.00016712,2]
[338624680,1726807850179,-848.06,0.00016712,2]
[338624681,1726807850189,-193.9796653,0.00016712,2]
[338624682,1726807850199,-500.0,0.00016712,2]
[338624683,1726807850208,-500.0,0.00016712,2]
[338624684,1726807850218,-500.86087875,0.00016712,2]
[338624685,1726807850227,-500.0,0.00016712,2]
[338624686,1726807850236,-500.0,0.00016712,2]
[338624687,1726807850248,-1084.37,0.00016712,2]
[338624688,1726807850258,-500.0,0.00016712,2]
[338624689,1726807850267,-500.0,0.00016712,2]
[338624690,1726807850278,-500.0,0.00016712,2]
[338624691,1726807850290,-500.0,0.00016712,2]
[338624692,1726807850313,-151.0,0.00016712,2]
[338624693,1726807850322,-151.0,0.00016712,2]
[338624694,1726807850332,-151.0,0.00016712,2]
[338624695,1726807850342,-512.93456275,0.00016712,2]
[338624696,1726807850352,-500.0,0.00016712,2]
[338624697,1726807850361,-501.78740809,0.00016712,2]
[338624698,1726807850371,-632.550972,0.00016712,2]
[338624699,1726807850380,-500.0,0.00016712,2]
[338624700,1726807850391,-632.550972,0.00016712,2]
[338624701,1726807850401,-632.550972,0.00016712,2]
[338624702,1726807850413,-844.7,0.00016712,2]
[338624703,1726807850422,-500.0,0.00016712,2]
[338624704,1726807850432,-500.0,0.00016712,2]
[338624705,1726807850441,-584.50685942,0.00016712,2]
[338624706,1726807850451,-500.32577325,0.00016712,2]
[338624707,1726807850460,-632.550972,0.00016712,2]
[338624708,1726807850469,-632.550972,0.00016712,2]
[338624709,1726807850481,-632.550972,0.00016712,2]
[338624710,1726807850491,-849.49,0.00016712,2]
[338624711,1726807850502,-500.0,0.00016712,2]
[338624712,1726807850512,-500.14,0.00016712,2]
[338624713,1726807850522,-500.0,0.00016712,2]
[338624714,1726807850533,-500.0,0.00016712,2]
[338624715,1726807850543,-1383.26,0.00016712,2]
[338624716,1726807850552,-1000.0,0.00016712,2]
[338624717,1726807850562,-500.0,0.00016712,2]
[338624718,1726807850572,-500.0,0.00016712,2]
[338624719,1726807850581,-831.57,0.00016712,2]
[338624720,1726807850590,-500.0,0.00016712,2]
[338624721,1726807850600,-888.97,0.00016712,2]
[338624722,1726807850609,-1200.88,0.00016712,2]
[338624723,1726807850619,-500.0,0.00016712,2]
[338624724,1726807850628,-815.52,0.00016712,2]
[338624725,1726807850637,-1306.86,0.00016712,2]
[338624726,1726807850646,-500.0,0.00016712,2]
[338624727,1726807850655,-500.0,0.00016712,2]
[338624728,1726807850665,-500.0,0.00016712,2]
[338624729,1726807850674,-519.89353914,0.00016712,2]
[338624730,1726807850683,-345.981531,0.00016712,2]
[338624731,1726807850693,-345.981531,0.00016712,2]
[338624732,1726807850703,-345.981531,0.00016712,2]
[338624733,1726807850712,-500.0,0.00016712,2]
[338624734,1726807850722,-345.981531,0.00016712,2]
[338624735,1726807850731,-345.981531,0.00016712,2]
[338624736,1726807850741,-345.981531,0.00016712,2]
[338624737,1726807850750,-500.0,0.00016712,2]
[338624738,1726807850759,-500.0,0.00016712,2]
[338624739,1726807850769,-500.0,0.00016712,2]
[338624740,1726807850778,-500.0,0.00016712,2]
[338624741,1726807850787,-500.0,0.00016712,2]
[338624742,1726807850803,-369.0961199,0.00016712,2]
[338624743,1726807850813,-1282.55,0.00016712,2]
[338624744,1726807850826,-500.0,0.00016712,2]
[338624745,1726807850835,-500.98814064,0.00016712,2]
[338624746,1726807850845,-500.0,0.00016712,2]
[338624747,1726807850854,-574.55,0.00016712,2]
[338624748,1726807850863,-500.0,0.00016712,2]
[338624749,1726807850872,-500.0,0.00016712,2]
[338624750,1726807850881,-8657.93,0.00016712,2]
[338624751,1726807850890,-500.0,0.00016712,2]
[338624752,1726807850900,-500.0,0.00016712,2]
[338624753,1726807850910,-708.43,0.00016712,2]
[338624754,1726807850919,-786.99,0.00016712,2]
[338624755,1726807850928,-486.39956229,0.00016712,2]
[338624756,1726807850938,-210.33996282,0.00016712,2]
[338624757,1726807850947,-538.79,0.00016712,2]
[338624758,1726807850957,-500.0,0.00016712,2]
[338624759,1726807850966,-151.0,0.00016712,2]
[338624760,1726807850975,-500.0,0.00016712,2]
[338624761,1726807850984,-506.6203096,0.00016712,2]
[338624762,1726807850994,-151.0,0.00016712,2]
[338624763,1726807851003,-168.357058,0.00016712,2]
[338624764,1726807851013,-151.0,0.00016712,2]
[338624765,1726807851023,-151.0,0.00016712,2]
[338624766,1726807851032,-151.0,0.00016712,2]
[338624767,1726807851047,-500.99201042,0.00016712,2]
[338624768,1726807851057,-500.0,0.00016712,2]
[338624769,1726807851066,-500.0,0.00016712,2]
[338624770,1726807851078,-818.28,0.00016712,2]
[338624771,1726807851088,-907.38,0.00016712,2]
[338624772,1726807851097,-604.23,0.00016712,2]
[338624773,1726807851107,-1217.660307,0.00016712,2]
[338624774,1726807851116,-500.0,0.00016712,2]
[338624775,1726807851126,-1217.660307,0.00016712,2]
[338624776,1726807851135,-1217.660307,0.00016712,2]
[338624777,1726807851145,-1172.99,0.00016712,2]
[338624778,1726807851154,-500.0,0.00016712,2]
[338624779,1726807851163,-1217.660307,0.00016712,2]
[338624780,1726807851173,-1217.660307,0.00016712,2]
[338624781,1726807851183,-1217.660307,0.00016712,2]
[338624782,1726807851193,-500.0,0.00016712,2]
[338624783,1726807851202,-500.0,0.00016712,2]
[338624784,1726807851212,-801.78,0.00016712,2]
[338624785,1726807851221,-500.0,0.00016712,2]
[338624786,1726807851231,-584.95,0.00016712,2]
[338624787,1726807851241,-954.3,0.00016712,2]
[338624788,1726807851250,-500.0,0.00016712,2]
[338624789,1726807851260,-500.0,0.00016712,2]
[338624790,1726807851269,-534.53592009,0.00016712,2]
[338624791,1726807851279,-501.43835117,0.00016712,2]
[338624792,1726807851288,-715.61,0.00016712,2]
[338624793,1726807851302,-500.0,0.00016712,2]
[338624794,1726807851311,-500.0,0.00016712,2]
[338624795,1726807851320,-522.06795901,0.00016712,2]
[338624796,1726807851330,-815.15,0.00016712,2]
[338624797,1726807851339,-500.0,0.00016712,2]
[338624798,1726807851348,-640.78,0.00016712,2]
[338624799,1726807851358,-500.0,0.00016712,2]
[338624800,1726807851367,-832.26,0.00016712,2]
[338624801,1726807851376,-504.48829786,0.00016712,2]
[338624802,1726807851386,-500.0,0.00016712,2]
[338624803,1726807851396,-500.0,0.00016712,2]
[338624804,1726807851407,-566.59,0.00016712,2]
[338624805,1726807851420,-500.0,0.00016712,2]
[338624806,1726807851430,-500.0,0.00016712,2]
[338624807,1726807851439,-608.82,0.00016712,2]
[338624808,1726807851449,-503.45819037,0.00016712,2]
[338624809,1726807851458,-500.0,0.00016712,2]
[338624810,1726807851467,-500.0,0.00016712,2]
[338624811,1726807851477,-500.0,0.00016712,2]
[338624812,1726807851486,-500.0,0.00016712,2]
[338624813,1726807851495,-500.0,0.00016712,2]
[338624814,1726807851505,-526.02467085,0.00016712,2]
[338624815,1726807851514,-238.11,0.00016712,2]
[338624816,1726807851523,-1216.33,0.00016712,2]
[338624817,1726807851533,-500.0,0.00016712,2]
[338624818,1726807851546,-501.38490169,0.00016712,2]
[338624819,1726807851555,-151.0,0.00016712,2]
[338624820,1726807851564,-151.0,0.00016712,2]
[338624821,1726807851574,-151.0,0.00016712,2]
[338624822,1726807851583,-500.0,0.00016712,2]
[338624823,1726807851593,-503.8766295,0.00016712,2]
[338624824,1726807851603,-500.0,0.00016712,2]
[338624825,1726807851613,-540.21,0.00016712,2]
[338624826,1726807851623,-500.0,0.00016712,2]
[338624827,1726807851633,-500.0,0.00016712,2]
[338624828,1726807851643,-338.4075647,0.00016712,2]
[338624829,1726807851652,-500.0,0.00016712,2]
[338624830,1726807851662,-500.0,0.00016712,2]
[338624831,1726807851672,-500.0,0.00016712,2]
[338624832,1726807851681,-592.2125189,0.00016712,2]
[338624833,1726807851691,-500.0,0.00016712,2]
[338624834,1726807851700,-500.0,0.00016712,2]
[338624835,1726807851710,-500.0,0.00016712,2]
[338624836,1726807851720,-574.21,0.00016712,2]
[338624837,1726807851731,-500.0,0.00016712,2]
[338624838,1726807851740,-151.0,0.00016712,2]
[338624839,1726807851750,-151.0,0.00016712,2]
[338624840,1726807851760,-151.0,0.00016712,2]
[338624841,1726807851770,-500.0,0.00016712,2]
[338624842,1726807851780,-500.0,0.00016712,2]
[338624843,1726807851794,-151.0,0.00016712,2]
[338624844,1726807851803,-151.0,0.00016712,2]
[338624845,1726807851812,-151.0,0.00016712,2]
[338624846,1726807851822,-500.0,0.00016712,2]
[338624847,1726807851831,-631.29171719,0.00016712,2]
[338624848,1726807851840,-500.0,0.00016712,2]